[Event "*** Titled Tuesday Blitz"]
[Site "Chess.com"]
[Date "2021.03.02"]
[Round "6"]
[White "profofchess"]
[Black "chessablanca"]
[Result "1-0"]
[WhiteElo "2482"]
[BlackElo "2588"]
[TimeControl "180+1"]
[EndTime "11:08:44 PST"]
[Termination "profofchess won by resignation"]

1. e4 {[%clk 0:03:00.9]} 1... e5 {[%clk 0:02:59.4]} 2. Nf3 {[%clk 0:03:00.9]}
2... Nc6 {[%clk 0:02:58.7]} 3. Nc3 {[%clk 0:03:01.8]} 3... Nf6 {[%clk
0:02:56.3]} 4. Bb5 {[%clk 0:03:01.8]} 4... Be7 {[%clk 0:02:53.1]} 5. O-O {[%clk
0:02:47.8]} 5... d6 {[%clk 0:02:51.3]} 6. d4 {[%clk 0:02:46.6]} 6... exd4 {[%clk
0:02:50.6]} 7. Nxd4 {[%clk 0:02:46.4]} 7... Bd7 {[%clk 0:02:51.1]} 8. Bxc6
{[%clk 0:02:46.5]} 8... bxc6 {[%clk 0:02:52]} 9. Qf3 {[%clk 0:02:43.8]} 9... c5
{[%clk 0:02:40.5]} 10. Nf5 {[%clk 0:02:43.5]} 10... O-O {[%clk 0:02:40.5]} 11.
b3 {[%clk 0:02:39.8]} 11... Ne8 {[%clk 0:02:33.7]} 12. Nxe7+ {[%clk 0:02:35.1]}
12... Qxe7 {[%clk 0:02:34.4]} 13. Nd5 {[%clk 0:02:13.5]} 13... Qd8 {[%clk
0:02:27.6]} 14. Bb2 {[%clk 0:02:10.7]} 14... c6 {[%clk 0:02:16.1]} 15. Ne3
{[%clk 0:02:08.3]} 15... Be6 {[%clk 0:02:07.9]} 16. Rad1 {[%clk 0:02:07]} 16...
Qg5 {[%clk 0:02:02]} 17. Qg3 {[%clk 0:01:15.7]} 17... Qxg3 {[%clk 0:01:49.2]}
18. hxg3 {[%clk 0:01:16.6]} 18... f5 {[%clk 0:01:45.4]} 19. exf5 {[%clk
0:01:13.5]} 19... Bxf5 {[%clk 0:01:45.6]} 20. Nxf5 {[%clk 0:01:13.7]} 20... Rxf5
{[%clk 0:01:46.5]} 21. Rfe1 {[%clk 0:01:13.9]} 21... Kf7 {[%clk 0:01:42.9]} 22.
Re2 {[%clk 0:01:08.4]} 22... Rd8 {[%clk 0:01:22.8]} 23. Rde1 {[%clk 0:01:06.2]}
23... Kf8 {[%clk 0:01:18.9]} 24. Re7 {[%clk 0:01:03]} 24... Rf7 {[%clk 0:01:19]}
25. R7e4 {[%clk 0:00:53.9]} 25... Nc7 {[%clk 0:01:12.6]} 26. Ra4 {[%clk
0:00:51.2]} 26... Nd5 {[%clk 0:01:10.2]} 27. a3 {[%clk 0:00:47.8]} 27... Nb6
{[%clk 0:01:07.7]} 28. Rh4 {[%clk 0:00:45.2]} 28... h6 {[%clk 0:01:06.1]} 29. a4
{[%clk 0:00:37.7]} 29... Nd5 {[%clk 0:01:04.4]} 30. Rhe4 {[%clk 0:00:22.2]}
30... Nb4 {[%clk 0:00:55.8]} 31. R1e2 {[%clk 0:00:21.8]} 31... Na6 {[%clk
0:00:50.3]} 32. Ba3 {[%clk 0:00:19]} 32... Nc7 {[%clk 0:00:41.2]} 33. f3 {[%clk
0:00:16.2]} 33... Re8 {[%clk 0:00:39]} 34. Rxe8+ {[%clk 0:00:15.5]} 34... Nxe8
{[%clk 0:00:39.9]} 35. Kf2 {[%clk 0:00:11.9]} 35... Nf6 {[%clk 0:00:39.9]} 36.
c4 {[%clk 0:00:09.1]} 36... Rb7 {[%clk 0:00:37.3]} 37. Re3 {[%clk 0:00:08.2]}
37... Nd7 {[%clk 0:00:34]} 38. f4 {[%clk 0:00:07.5]} 38... Nf6 {[%clk
0:00:33.7]} 39. Kf3 {[%clk 0:00:07.4]} 39... h5 {[%clk 0:00:33.4]} 40. Bb2
{[%clk 0:00:06.2]} 40... Ne8 {[%clk 0:00:29.9]} 41. g4 {[%clk 0:00:06.4]} 41...
hxg4+ {[%clk 0:00:29]} 42. Kxg4 {[%clk 0:00:07.3]} 42... Kf7 {[%clk 0:00:29.3]}
43. f5 {[%clk 0:00:06.9]} 43... Rd7 {[%clk 0:00:18.1]} 44. Kf4 {[%clk
0:00:06.9]} 44... d5 {[%clk 0:00:18.5]} 45. Rd3 {[%clk 0:00:07]} 45... d4 {[%clk
0:00:18.5]} 46. Rd1 {[%clk 0:00:06.7]} 46... Nd6 {[%clk 0:00:17.2]} 47. Re1
{[%clk 0:00:04.7]} 47... Rb7 {[%clk 0:00:16.5]} 48. Ba3 {[%clk 0:00:04.2]} 48...
Rxb3 {[%clk 0:00:13.6]} 49. Bxc5 {[%clk 0:00:04.5]} 49... Nxc4 {[%clk 0:00:14]}
50. Re7+ {[%clk 0:00:04.5]} 50... Kg8 {[%clk 0:00:10.8]} 51. Bxd4 {[%clk
0:00:03.7]} 51... Rb4 {[%clk 0:00:10.2]} 52. Rxg7+ {[%clk 0:00:03.7]} 52... Kf8
{[%clk 0:00:09.4]} 53. Kg5 {[%clk 0:00:04.1]} 53... Nd6 {[%clk 0:00:04.5]} 54.
Bc5 {[%clk 0:00:04.4]} 54... Kxg7 {[%clk 0:00:05]} 55. Bxb4 {[%clk 0:00:04.6]}
55... c5 {[%clk 0:00:05.6]} 56. Bc3+ {[%clk 0:00:02.1]} 56... Kf7 {[%clk
0:00:06.1]} 57. Kf4 {[%clk 0:00:02.5]} 57... Ke7 {[%clk 0:00:04]} 58. g4 {[%clk
0:00:03]} 58... Nc4 {[%clk 0:00:04.3]} 59. g5 {[%clk 0:00:03.3]} 59... Na3
{[%clk 0:00:04.2]} 60. g6 {[%clk 0:00:03.3]} 60... Nb1 {[%clk 0:00:04.8]} 61.
Bb2 {[%clk 0:00:02.7]} 61... Nd2 {[%clk 0:00:04.4]} 62. f6+ {[%clk 0:00:02.8]}
62... Kf8 {[%clk 0:00:04.6]} 63. f7 {[%clk 0:00:02.6]} 63... Nc4 {[%clk
0:00:04.3]} 64. Kg5 {[%clk 0:00:02.7]} 64... Nd6 {[%clk 0:00:01.9]} 65. Kf6
{[%clk 0:00:02.8]} 65... Ne4+ {[%clk 0:00:02.2]} 66. Ke5 {[%clk 0:00:03.1]}
66... Ng5 {[%clk 0:00:02.6]} 67. Bc3 {[%clk 0:00:03]} 67... Nf3+ {[%clk
0:00:02.8]} 68. Kd5 {[%clk 0:00:03.1]} 68... Nh4 {[%clk 0:00:03.1]} 69. Kxc5
{[%clk 0:00:02.1]} 69... Nxg6 {[%clk 0:00:04]} 70. Kc6 {[%clk 0:00:02.4]} 70...
Kxf7 {[%clk 0:00:04.9]} 71. Kb7 {[%clk 0:00:02.9]} 71... Ne5 {[%clk 0:00:05.4]}
72. Kxa7 {[%clk 0:00:03.3]} 72... Nc6+ {[%clk 0:00:06.3]} 73. Kb6 {[%clk
0:00:03.3]} 73... Nd8 {[%clk 0:00:06.8]} 74. a5 {[%clk 0:00:04.2]} 74... Ke6
{[%clk 0:00:07.2]} 75. a6 {[%clk 0:00:05.1]} 75... Kd7 {[%clk 0:00:07.9]} 76. a7
{[%clk 0:00:05.9]} 76... Nc6 {[%clk 0:00:06.6]} 77. a8=Q {[%clk 0:00:06.8]}
77... Ne7 {[%clk 0:00:07.2]} 78. Qb7+ {[%clk 0:00:07.2]} 78... Ke6 {[%clk
0:00:07.8]} 79. Qh1 {[%clk 0:00:07.5]} 79... Nd5+ {[%clk 0:00:08.2]} 80. Kc5
{[%clk 0:00:07.4]} 80... Nxc3 {[%clk 0:00:09.1]} 81. Qe1+ {[%clk 0:00:06.6]} 1-0

[Event "*** Titled Tuesday Blitz"]
[Site "Chess.com"]
[Date "2021.03.02"]
[Round "6"]
[White "Abund"]
[Black "karinachess1"]
[Result "1-0"]
[WhiteElo "2671"]
[BlackElo "2509"]
[TimeControl "180+1"]
[EndTime "11:08:45 PST"]
[Termination "Abund won by resignation"]

1. e4 {[%clk 0:03:00.9]} 1... c5 {[%clk 0:02:57.7]} 2. Nf3 {[%clk 0:03:00.5]}
2... e6 {[%clk 0:02:55]} 3. g3 {[%clk 0:02:59.9]} 3... d6 {[%clk 0:02:46.6]} 4.
Bg2 {[%clk 0:02:23.4]} 4... Nf6 {[%clk 0:02:46.2]} 5. Qe2 {[%clk 0:02:21.8]}
5... Nc6 {[%clk 0:02:38.1]} 6. O-O {[%clk 0:02:21.2]} 6... Be7 {[%clk 0:02:37]}
7. c3 {[%clk 0:02:13.9]} 7... e5 {[%clk 0:02:35.7]} 8. Na3 {[%clk 0:02:12.5]}
8... O-O {[%clk 0:02:35.5]} 9. d3 {[%clk 0:02:12]} 9... Re8 {[%clk 0:02:34.2]}
10. Bg5 {[%clk 0:02:09.8]} 10... h6 {[%clk 0:02:34.2]} 11. Bxf6 {[%clk
0:02:08.8]} 11... Bxf6 {[%clk 0:02:35.1]} 12. Nc4 {[%clk 0:02:08.9]} 12... Be6
{[%clk 0:02:18.6]} 13. Ne3 {[%clk 0:02:08.6]} 13... d5 {[%clk 0:02:01.9]} 14.
Nd2 {[%clk 0:01:55.7]} 14... d4 {[%clk 0:01:35.3]} 15. Nd5 {[%clk 0:01:53.5]}
15... Bxd5 {[%clk 0:01:28.9]} 16. exd5 {[%clk 0:01:52.2]} 16... Ne7 {[%clk
0:01:29.5]} 17. c4 {[%clk 0:01:49.8]} 17... Nf5 {[%clk 0:01:26.8]} 18. a3 {[%clk
0:01:45.8]} 18... a5 {[%clk 0:01:18.1]} 19. b4 {[%clk 0:01:32.3]} 19... axb4
{[%clk 0:01:15.6]} 20. axb4 {[%clk 0:01:32.2]} 20... cxb4 {[%clk 0:01:03.9]} 21.
c5 {[%clk 0:01:29.9]} 21... Ne7 {[%clk 0:00:35.9]} 22. d6 {[%clk 0:01:21.2]}
22... Nc6 {[%clk 0:00:36.1]} 23. Nc4 {[%clk 0:01:21.4]} 23... g6 {[%clk
0:00:19.3]} 24. Nb6 {[%clk 0:01:10.5]} 24... Rb8 {[%clk 0:00:17.4]} 25. Rfb1
{[%clk 0:01:02]} 25... Bg7 {[%clk 0:00:17.3]} 26. Qa2 {[%clk 0:01:00.3]} 26...
Rf8 {[%clk 0:00:12.9]} 27. Bd5 {[%clk 0:00:59.7]} 27... Qe8 {[%clk 0:00:11.2]}
28. Qc4 {[%clk 0:00:56.7]} 28... Kh7 {[%clk 0:00:10.6]} 29. d7 {[%clk
0:00:40.2]} 29... Qe7 {[%clk 0:00:10.8]} 30. Bxc6 {[%clk 0:00:39.9]} 30... bxc6
{[%clk 0:00:11.7]} 31. Ra7 {[%clk 0:00:36.3]} 31... f5 {[%clk 0:00:10.9]} 32.
Rc7 {[%clk 0:00:28.9]} 32... e4 {[%clk 0:00:10.2]} 33. dxe4 {[%clk 0:00:28.4]}
33... fxe4 {[%clk 0:00:10.3]} 34. Rc8 {[%clk 0:00:26.4]} 34... Qf6 {[%clk
0:00:09.4]} 35. Qe2 {[%clk 0:00:21.9]} 35... e3 {[%clk 0:00:07]} 36. fxe3 {[%clk
0:00:20.2]} 36... d3 {[%clk 0:00:07.3]} 37. Qd2 {[%clk 0:00:18.5]} 37... Qc3
{[%clk 0:00:07.4]} 38. Rd1 {[%clk 0:00:15.3]} 38... b3 {[%clk 0:00:06.7]} 39.
Qxd3 {[%clk 0:00:14]} 39... Qxd3 {[%clk 0:00:06.4]} 40. Rxd3 {[%clk 0:00:14.7]}
40... b2 {[%clk 0:00:07.1]} 41. Rb3 {[%clk 0:00:13.6]} 41... Rd8 {[%clk
0:00:05.1]} 42. Kf2 {[%clk 0:00:09.7]} 42... h5 {[%clk 0:00:04.8]} 43. Ke2
{[%clk 0:00:09.8]} 43... Be5 {[%clk 0:00:05.1]} 44. Rxb8 {[%clk 0:00:07.9]}
44... Rxb8 {[%clk 0:00:04.9]} 45. Kd3 {[%clk 0:00:08.2]} 45... Rd8 {[%clk
0:00:04.3]} 46. Kc2 {[%clk 0:00:08.1]} 46... Kg7 {[%clk 0:00:04.3]} 47. e4
{[%clk 0:00:08.1]} 47... g5 {[%clk 0:00:04.7]} 48. Rf3 {[%clk 0:00:08.1]} 48...
h4 {[%clk 0:00:04.7]} 49. Rf5 {[%clk 0:00:08.2]} 49... Bc7 {[%clk 0:00:04]} 50.
Rxg5+ {[%clk 0:00:07.9]} 50... Kf6 {[%clk 0:00:04.5]} 51. Rf5+ {[%clk
0:00:08.2]} 51... Ke6 {[%clk 0:00:04.6]} 52. gxh4 {[%clk 0:00:06]} 52... Bxb6
{[%clk 0:00:04.5]} 53. cxb6 {[%clk 0:00:06.9]} 53... Rxd7 {[%clk 0:00:05.4]} 54.
Kxb2 {[%clk 0:00:07.2]} 54... Rb7 {[%clk 0:00:04.8]} 55. Kc3 {[%clk 0:00:06.4]}
55... Rxb6 {[%clk 0:00:05.4]} 56. h5 {[%clk 0:00:06.1]} 56... Rb8 {[%clk
0:00:05.4]} 57. h6 {[%clk 0:00:06.2]} 57... Rh8 {[%clk 0:00:05.6]} 58. Rh5
{[%clk 0:00:06.5]} 58... Rh7 {[%clk 0:00:06.3]} 59. Kd4 {[%clk 0:00:06.2]} 59...
Kd6 {[%clk 0:00:06.8]} 60. e5+ {[%clk 0:00:06.2]} 60... Ke6 {[%clk 0:00:06.7]}
61. Kc5 {[%clk 0:00:06.8]} 61... Kd7 {[%clk 0:00:07.4]} 62. h3 {[%clk
0:00:06.1]} 62... Kc7 {[%clk 0:00:06.9]} 63. e6 {[%clk 0:00:06.6]} 63... Kb7
{[%clk 0:00:07.4]} 64. Kd6 {[%clk 0:00:06.9]} 64... Kb6 {[%clk 0:00:07.6]} 65.
e7 {[%clk 0:00:07.2]} 65... Rh8 {[%clk 0:00:07.8]} 66. Kd7 {[%clk 0:00:07.5]}
66... c5 {[%clk 0:00:08.4]} 67. e8=Q {[%clk 0:00:07.8]} 67... Rxe8 {[%clk
0:00:08.1]} 68. Kxe8 {[%clk 0:00:08.7]} 68... c4 {[%clk 0:00:07.7]} 69. h7
{[%clk 0:00:09.6]} 1-0

[Event "*** Titled Tuesday Blitz"]
[Site "Chess.com"]
[Date "2021.03.02"]
[Round "6"]
[White "maheswaran26"]
[Black "kleopl"]
[Result "1/2-1/2"]
[WhiteElo "2292"]
[BlackElo "2482"]
[TimeControl "180+1"]
[EndTime "11:08:49 PST"]
[Termination "Game drawn by repetition"]

1. d4 {[%clk 0:02:59]} 1... d6 {[%clk 0:02:59.7]} 2. Nf3 {[%clk 0:02:57.5]} 2...
Bg4 {[%clk 0:02:59.4]} 3. e4 {[%clk 0:02:55.3]} 3... e6 {[%clk 0:02:57.1]} 4. h3
{[%clk 0:02:48.3]} 4... Bxf3 {[%clk 0:02:54.5]} 5. Qxf3 {[%clk 0:02:47.7]} 5...
d5 {[%clk 0:02:54.6]} 6. Bd3 {[%clk 0:02:43.3]} 6... Nf6 {[%clk 0:02:51.6]} 7.
Nd2 {[%clk 0:02:36.5]} 7... Be7 {[%clk 0:02:40]} 8. O-O {[%clk 0:02:33.9]} 8...
O-O {[%clk 0:02:37.7]} 9. c3 {[%clk 0:02:32.2]} 9... a6 {[%clk 0:02:26.4]} 10.
Re1 {[%clk 0:02:24.5]} 10... Re8 {[%clk 0:02:19.8]} 11. exd5 {[%clk 0:02:18.5]}
11... exd5 {[%clk 0:02:17.2]} 12. Nf1 {[%clk 0:02:17.1]} 12... c6 {[%clk
0:02:12]} 13. Ng3 {[%clk 0:02:12.7]} 13... g6 {[%clk 0:02:07.7]} 14. Bg5 {[%clk
0:02:11]} 14... Nbd7 {[%clk 0:02:07.5]} 15. Re2 {[%clk 0:02:03.1]} 15... Kf8
{[%clk 0:01:48.2]} 16. Rae1 {[%clk 0:01:58.2]} 16... Ng8 {[%clk 0:01:47.3]} 17.
Bd2 {[%clk 0:01:29.2]} 17... Ndf6 {[%clk 0:01:41.4]} 18. h4 {[%clk 0:01:22.1]}
18... Bd6 {[%clk 0:01:36]} 19. h5 {[%clk 0:01:01.8]} 19... Rxe2 {[%clk
0:01:32.6]} 20. Rxe2 {[%clk 0:00:56.3]} 20... Bxg3 {[%clk 0:01:30.8]} 21. hxg6
{[%clk 0:00:46.6]} 21... hxg6 {[%clk 0:01:20.8]} 22. fxg3 {[%clk 0:00:42.3]}
22... Qd7 {[%clk 0:01:15.3]} 23. Bg5 {[%clk 0:00:37.5]} 23... Nh7 {[%clk
0:01:14]} 24. Bd2 {[%clk 0:00:26.5]} 24... Kg7 {[%clk 0:01:11]} 25. Bf4 {[%clk
0:00:25.6]} 25... Re8 {[%clk 0:01:08.5]} 26. Be5+ {[%clk 0:00:24.8]} 26... f6
{[%clk 0:01:06]} 27. Bf4 {[%clk 0:00:24.1]} 27... Rxe2 {[%clk 0:01:00.5]} 28.
Qxe2 {[%clk 0:00:23.7]} 28... Nf8 {[%clk 0:00:55.5]} 29. Bd2 {[%clk 0:00:14]}
29... Nh6 {[%clk 0:00:47.2]} 30. Bxh6+ {[%clk 0:00:09.5]} 30... Kxh6 {[%clk
0:00:48.1]} 31. Qe3+ {[%clk 0:00:09.8]} 31... Kg7 {[%clk 0:00:47.8]} 32. Qf4
{[%clk 0:00:09.4]} 32... Ne6 {[%clk 0:00:44.4]} 33. Qg4 {[%clk 0:00:09]} 33...
Nf8 {[%clk 0:00:44.5]} 34. Qf4 {[%clk 0:00:08.6]} 34... Qe7 {[%clk 0:00:42.1]}
35. Kf2 {[%clk 0:00:07.8]} 35... Ne6 {[%clk 0:00:38]} 36. Qe3 {[%clk 0:00:07.3]}
36... Kf7 {[%clk 0:00:34.3]} 37. g4 {[%clk 0:00:06.8]} 37... Nf8 {[%clk
0:00:33.4]} 38. Qxe7+ {[%clk 0:00:05.7]} 38... Kxe7 {[%clk 0:00:34.3]} 39. Ke3
{[%clk 0:00:05.8]} 39... g5 {[%clk 0:00:33.6]} 40. Bf5 {[%clk 0:00:05.4]} 40...
Kd6 {[%clk 0:00:33.3]} 41. Kd3 {[%clk 0:00:05]} 41... a5 {[%clk 0:00:33.1]} 42.
a4 {[%clk 0:00:04.3]} 42... Ne6 {[%clk 0:00:22.1]} 43. Bxe6 {[%clk 0:00:04.3]}
43... Kxe6 {[%clk 0:00:23]} 44. Ke3 {[%clk 0:00:04.1]} 44... b5 {[%clk
0:00:21.2]} 45. b3 {[%clk 0:00:03.5]} 45... Kd6 {[%clk 0:00:19.6]} 46. Kd3
{[%clk 0:00:02.9]} 46... bxa4 {[%clk 0:00:17.7]} 47. bxa4 {[%clk 0:00:02.6]}
47... Ke6 {[%clk 0:00:17.9]} 48. Ke3 {[%clk 0:00:02.3]} 48... f5 {[%clk
0:00:18.3]} 49. g3 {[%clk 0:00:01.9]} 49... Kf6 {[%clk 0:00:14.8]} 50. Kf3
{[%clk 0:00:01.6]} 50... fxg4+ {[%clk 0:00:13.8]} 51. Kxg4 {[%clk 0:00:01.6]}
51... Kg6 {[%clk 0:00:14.7]} 52. Kf3 {[%clk 0:00:01.6]} 52... Kf5 {[%clk
0:00:13.9]} 53. g4+ {[%clk 0:00:01.6]} 53... Kf6 {[%clk 0:00:14.2]} 54. Ke3
{[%clk 0:00:01.9]} 54... Ke6 {[%clk 0:00:14.7]} 55. Kd3 {[%clk 0:00:02.4]} 55...
Kd6 {[%clk 0:00:14.6]} 56. c4 {[%clk 0:00:02.7]} 56... c5 {[%clk 0:00:08.1]} 57.
Kc3 {[%clk 0:00:02.6]} 57... Kc6 {[%clk 0:00:05.9]} 58. dxc5 {[%clk 0:00:02.1]}
58... Kxc5 {[%clk 0:00:05.9]} 59. cxd5 {[%clk 0:00:02.3]} 59... Kxd5 {[%clk
0:00:06]} 60. Kd3 {[%clk 0:00:03]} 60... Ke5 {[%clk 0:00:05.2]} 61. Ke3 {[%clk
0:00:03.2]} 61... Kd5 {[%clk 0:00:04.9]} 62. Kd3 {[%clk 0:00:03.6]} 62... Ke5
{[%clk 0:00:03.5]} 63. Ke3 {[%clk 0:00:04]} 63... Kd5 {[%clk 0:00:03.8]} 64. Kd3
{[%clk 0:00:04.1]} 1/2-1/2

[Event "*** Titled Tuesday Blitz"]
[Site "Chess.com"]
[Date "2021.03.02"]
[Round "6"]
[White "MateusViageiro"]
[Black "Oligan22"]
[Result "1-0"]
[WhiteElo "2366"]
[BlackElo "2518"]
[TimeControl "180+1"]
[EndTime "11:08:57 PST"]
[Termination "MateusViageiro won by checkmate"]

1. e4 {[%clk 0:03:00.9]} 1... c6 {[%clk 0:02:59.7]} 2. d4 {[%clk 0:02:58.9]}
2... d5 {[%clk 0:02:59.7]} 3. Nc3 {[%clk 0:02:59.5]} 3... dxe4 {[%clk
0:02:59.8]} 4. Nxe4 {[%clk 0:02:59.9]} 4... Nf6 {[%clk 0:03:00.7]} 5. Nxf6+
{[%clk 0:02:59]} 5... exf6 {[%clk 0:03:01.6]} 6. c3 {[%clk 0:02:58.7]} 6... Bd6
{[%clk 0:03:01.8]} 7. Bd3 {[%clk 0:02:58.8]} 7... O-O {[%clk 0:03:02.1]} 8. Qc2
{[%clk 0:02:57.6]} 8... Re8+ {[%clk 0:03:02.3]} 9. Ne2 {[%clk 0:02:57.3]} 9...
h5 {[%clk 0:03:02.9]} 10. O-O {[%clk 0:02:53.8]} 10... Nd7 {[%clk 0:03:03.4]}
11. Be3 {[%clk 0:02:48.7]} 11... h4 {[%clk 0:03:03.2]} 12. h3 {[%clk 0:02:47]}
12... Nf8 {[%clk 0:03:03.2]} 13. Rae1 {[%clk 0:02:42.8]} 13... Be6 {[%clk
0:03:02.4]} 14. Nf4 {[%clk 0:02:38.5]} 14... Bc7 {[%clk 0:02:41.4]} 15. Nxe6
{[%clk 0:02:34.9]} 15... Rxe6 {[%clk 0:02:39.9]} 16. f4 {[%clk 0:02:21]} 16...
Qd6 {[%clk 0:02:37.5]} 17. Bf5 {[%clk 0:02:08.4]} 17... Re7 {[%clk 0:02:36.8]}
18. Bc1 {[%clk 0:02:02.6]} 18... g6 {[%clk 0:02:21.7]} 19. Bd3 {[%clk
0:01:51.5]} 19... Rae8 {[%clk 0:02:20.2]} 20. Rxe7 {[%clk 0:01:42.2]} 20... Qxe7
{[%clk 0:02:21.1]} 21. Qf2 {[%clk 0:01:39.3]} 21... f5 {[%clk 0:02:20.8]} 22.
Bd2 {[%clk 0:01:36.8]} 22... Ne6 {[%clk 0:02:14.9]} 23. Bc4 {[%clk 0:01:27.3]}
23... Kg7 {[%clk 0:02:09.8]} 24. Re1 {[%clk 0:01:26.2]} 24... Qf6 {[%clk
0:01:50.8]} 25. Be3 {[%clk 0:01:16.1]} 25... Nxf4 {[%clk 0:01:44.9]} 26. d5
{[%clk 0:00:57.3]} 26... Nxh3+ {[%clk 0:00:53.8]} 27. gxh3 {[%clk 0:00:50.4]}
27... Bg3 {[%clk 0:00:54.4]} 28. Bd4 {[%clk 0:00:33.4]} 28... Bxf2+ {[%clk
0:00:12.4]} 29. Kxf2 {[%clk 0:00:30.2]} 29... Qxd4+ {[%clk 0:00:10]} 30. cxd4
{[%clk 0:00:28.9]} 30... Rd8 {[%clk 0:00:10.9]} 31. dxc6 {[%clk 0:00:24.8]}
31... bxc6 {[%clk 0:00:11.8]} 32. Re7 {[%clk 0:00:23.7]} 32... Rxd4 {[%clk
0:00:11.9]} 33. Bb3 {[%clk 0:00:20.2]} 33... Rd2+ {[%clk 0:00:09.2]} 34. Ke3
{[%clk 0:00:19.8]} 34... Rxb2 {[%clk 0:00:08.1]} 35. Rxf7+ {[%clk 0:00:20.3]}
35... Kh6 {[%clk 0:00:08.4]} 36. Rb7 {[%clk 0:00:20.4]} 36... Rh2 {[%clk
0:00:08.2]} 37. Rxa7 {[%clk 0:00:20.5]} 37... Rxh3+ {[%clk 0:00:08.1]} 38. Kf2
{[%clk 0:00:21.1]} 38... Kg5 {[%clk 0:00:05.7]} 39. Rc7 {[%clk 0:00:20.8]} 39...
Rc3 {[%clk 0:00:06.3]} 40. Rg7 {[%clk 0:00:19.2]} 40... h3 {[%clk 0:00:05.2]}
41. Rh7 {[%clk 0:00:18.5]} 41... Kf4 {[%clk 0:00:04.4]} 42. Rh4+ {[%clk
0:00:15.8]} 42... Kg5 {[%clk 0:00:04.5]} 43. Rh8 {[%clk 0:00:15.9]} 43... Kg4
{[%clk 0:00:03.8]} 44. Bd1+ {[%clk 0:00:13]} 44... Kf4 {[%clk 0:00:03.8]} 45.
Rh4+ {[%clk 0:00:11.9]} 45... Kg5 {[%clk 0:00:01.5]} 46. Rh8 {[%clk 0:00:11.8]}
46... c5 {[%clk 0:00:01.9]} 47. a4 {[%clk 0:00:11.6]} 47... Kf4 {[%clk
0:00:02.1]} 48. a5 {[%clk 0:00:11.5]} 48... Ra3 {[%clk 0:00:02]} 49. Rh4+ {[%clk
0:00:11]} 49... Kg5 {[%clk 0:00:01.8]} 50. Rh8 {[%clk 0:00:10.9]} 50... Ra2+
{[%clk 0:00:02.3]} 51. Kg3 {[%clk 0:00:10.1]} 51... Ra3+ {[%clk 0:00:02.8]} 52.
Kf2 {[%clk 0:00:08.4]} 52... Kf4 {[%clk 0:00:03.3]} 53. Rh4+ {[%clk 0:00:07.8]}
53... Kg5 {[%clk 0:00:03.6]} 54. Ra4 {[%clk 0:00:08]} 54... Rd3 {[%clk
0:00:03.2]} 55. Bf3 {[%clk 0:00:07.1]} 55... Rd7 {[%clk 0:00:02.6]} 56. a6
{[%clk 0:00:07.4]} 56... Ra7 {[%clk 0:00:03.3]} 57. Bb7 {[%clk 0:00:07.9]} 57...
Kh5 {[%clk 0:00:02.4]} 58. Kg3 {[%clk 0:00:08.2]} 58... g5 {[%clk 0:00:02.5]}
59. Kxh3 {[%clk 0:00:08.7]} 59... g4+ {[%clk 0:00:03.1]} 60. Kg3 {[%clk
0:00:09.1]} 60... Kg5 {[%clk 0:00:04]} 61. Rf4 {[%clk 0:00:08.7]} 61... Kg6
{[%clk 0:00:03.8]} 62. Rc4 {[%clk 0:00:07]} 62... Kg5 {[%clk 0:00:04.2]} 63.
Rxc5 {[%clk 0:00:07.5]} 63... Kf6 {[%clk 0:00:04.1]} 64. Kf4 {[%clk 0:00:07.6]}
64... Kg6 {[%clk 0:00:04.8]} 65. Rxf5 {[%clk 0:00:07.5]} 65... Kh6 {[%clk
0:00:05.3]} 66. Rg5 {[%clk 0:00:07.6]} 66... Kh7 {[%clk 0:00:06.2]} 67. Rxg4
{[%clk 0:00:08.1]} 67... Kh6 {[%clk 0:00:07.1]} 68. Kf5 {[%clk 0:00:08]} 68...
Kh7 {[%clk 0:00:08]} 69. Kf6 {[%clk 0:00:07.8]} 69... Kh6 {[%clk 0:00:08.9]} 70.
Rh4# {[%clk 0:00:06.2]} 1-0